[Event "Titled Tuesday Blitz January 10 Early 2023"]
[White "Boros, Denes"]
[Black "Manelyuk, Daniil"]
[WhiteFideId "722340"]
[BlackFideId "44173920"]
[WhiteElo "2406"]
[BlackElo "2302"]
[Result "0-1"]
[Round "08"]
[TimeControl "180+2"]
[Date "2023.01.10"]
[WhiteClock "0:00:42"]
[BlackClock "0:00:04"]

1. d4 {[%clk 0:02:59]}  Nf6 {[%clk 0:02:16]} 2. Nc3 {[%clk 0:02:59]}  c5 {[%clk 0:02:16]} 3. Nf3 {[%clk 0:02:58]}  g6 {[%clk 0:02:15]} 4. e4 {[%clk 0:02:57]}  cxd4 {[%clk 0:02:15]} 5. Nxd4 {[%clk 0:02:57]}  Nc6 {[%clk 0:02:11]} 6. Nxc6 {[%clk 0:02:53]}  bxc6 {[%clk 0:02:11]} 7. e5 {[%clk 0:02:54]}  Nh5 {[%clk 0:02:10]} 8. Bc4 {[%clk 0:02:51]}  Ng7 {[%clk 0:02:09]} 9. O-O {[%clk 0:02:41]}  Qa5 {[%clk 0:02:07]} 10. Qf3 {[%clk 0:02:31]}  Ne6 {[%clk 0:02:02]} 11. Bd2 {[%clk 0:02:27]}  Bg7 {[%clk 0:01:51]} 12. Ne4 {[%clk 0:02:24]}  Qc7 {[%clk 0:01:48]} 13. Nf6+ {[%clk 0:02:16]}  exf6 {[%clk 0:01:43]} 14. exf6 {[%clk 0:02:17]}  Bf8 {[%clk 0:01:43]} 15. Rfe1 {[%clk 0:02:17]}  Bb7 {[%clk 0:01:42]} 16. Rad1 {[%clk 0:02:13]}  d5 {[%clk 0:01:39]} 17. Bd3 {[%clk 0:02:03]}  O-O-O {[%clk 0:01:38]} 18. c4 {[%clk 0:02:01]}  dxc4 {[%clk 0:01:32]} 19. Bxc4 {[%clk 0:02:02]}  Bd6 {[%clk 0:01:28]} 20. Be3 {[%clk 0:01:58]}  Kb8 {[%clk 0:01:20]} 21. h4 {[%clk 0:01:49]}  Rhe8 {[%clk 0:01:19]} 22. b4 {[%clk 0:01:47]}  c5 {[%clk 0:01:09]} 23. Bd5 {[%clk 0:01:47]}  cxb4 {[%clk 0:00:58]} 24. Kh1 {[%clk 0:01:44]}  Bxd5 {[%clk 0:00:56]} 25. Rxd5 {[%clk 0:01:45]}  a6 {[%clk 0:00:50]} 26. Rc1 {[%clk 0:01:37]}  Qb7 {[%clk 0:00:50]} 27. Qd1 {[%clk 0:01:34]}  Bc7 {[%clk 0:00:47]} 28. Rd7 {[%clk 0:01:32]}  Kc8 {[%clk 0:00:41]} 29. Rxd8+ {[%clk 0:01:24]}  Rxd8 {[%clk 0:00:42]} 30. Qa4 {[%clk 0:01:24]}  Qb5 {[%clk 0:00:38]} 31. Qc2 {[%clk 0:01:23]}  Kb7 {[%clk 0:00:35]} 32. a3 {[%clk 0:01:19]}  b3 {[%clk 0:00:34]} 33. Qb1 {[%clk 0:01:17]}  Qd3 {[%clk 0:00:27]} 34. Qb2 {[%clk 0:01:15]}  Ka8 {[%clk 0:00:26]} 35. g3 {[%clk 0:01:10]}  Qd5+ {[%clk 0:00:19]} 36. Kg1 {[%clk 0:01:08]}  Be5 {[%clk 0:00:20]} 37. Qe2 {[%clk 0:01:08]}  Kb7 {[%clk 0:00:15]} 38. Rb1 {[%clk 0:01:00]}  Rc8 {[%clk 0:00:14]} 39. Kh2 {[%clk 0:00:59]}  Rc3 {[%clk 0:00:13]} 40. a4 {[%clk 0:00:57]}  Rd3 {[%clk 0:00:13]} 41. Qe1 {[%clk 0:00:56]}  Bc3 {[%clk 0:00:13]} 42. Qe2 {[%clk 0:00:55]}  b2 {[%clk 0:00:12]} 43. a5 {[%clk 0:00:53]}  Qb5 {[%clk 0:00:12]} 44. Qc2 {[%clk 0:00:49]}  Bxf6 {[%clk 0:00:09]} 45. Qe2 {[%clk 0:00:47]}  Rd5 {[%clk 0:00:07]} 46. Qf3 {[%clk 0:00:47]}  Be5 {[%clk 0:00:03]} 47. Qxf7+ {[%clk 0:00:47]}  Nc7 {[%clk 0:00:04]} 48. Qf3 {[%clk 0:00:47]}  Qc6 {[%clk 0:00:03]} 49. Qe4 {[%clk 0:00:46]}  Rb5 {[%clk 0:00:04]} 50. Qd3 {[%clk 0:00:45]}  Nd5 {[%clk 0:00:04]} 51. Bd2 {[%clk 0:00:45]}  Nc3 {[%clk 0:00:04]} 52. Bxc3 {[%clk 0:00:44]}  Qxc3 {[%clk 0:00:05]} 53. Qd7+ {[%clk 0:00:45]}  Qc7 {[%clk 0:00:04]} 54. Qd3 {[%clk 0:00:45]}  Qc6 {[%clk 0:00:04]} 55. Re1 {[%clk 0:00:44]}  Bc7 {[%clk 0:00:04]} 56. Rb1 {[%clk 0:00:44]}  Bxa5 {[%clk 0:00:05]} 57. Qa3 {[%clk 0:00:44]}  Bc7 {[%clk 0:00:05]} 58. Rxb2 {[%clk 0:00:44]}  Rxb2 {[%clk 0:00:06]} 59. Qxb2+ {[%clk 0:00:45]}  Qb6 {[%clk 0:00:07]} 60. Qc2 {[%clk 0:00:44]}  a5 {[%clk 0:00:08]} 61. h5 {[%clk 0:00:44]}  gxh5 {[%clk 0:00:07]} 62. Qf5 {[%clk 0:00:44]}  a4 {[%clk 0:00:06]} 63. Kh3 {[%clk 0:00:42]}  Qc6 {[%clk 0:00:04]} 64. Qb1+ {[%clk 0:00:42]}  Bb6 {[%clk 0:00:04]} 65. f4 {[%clk 0:00:42]}  a3 {[%clk 0:00:04]} 66. Qxh7+ {[%clk 0:00:42]}  Ka6 {[%clk 0:00:04]} 67. Qd3+ {[%clk 0:00:42]}  Kb7 {[%clk 0:00:04]} 68. Qxa3 {[%clk 0:00:42]}  Qh1# {[%clk 0:00:04]} 0-1


[Site "https://www.chess.com"]

[Event "Titled Tuesday Blitz January 10 Early 2023"]
[White "Seemann, Jakub"]
[Black "Mahdavi, Reza"]
[WhiteFideId "21874697"]
[BlackFideId "12595926"]
[WhiteElo "2446"]
[BlackElo "2339"]
[Result "1-0"]
[Round "08"]
[TimeControl "180+2"]
[Date "2023.01.10"]
[WhiteClock "0:00:36"]
[BlackClock "0:00:58"]

1. d4 {[%clk 0:03:00]}  Nf6 {[%clk 0:02:58]} 2. c4 {[%clk 0:03:00]}  g6 {[%clk 0:02:58]} 3. Nc3 {[%clk 0:02:58]}  Bg7 {[%clk 0:02:53]} 4. e4 {[%clk 0:02:58]}  d6 {[%clk 0:02:54]} 5. Be2 {[%clk 0:02:58]}  O-O {[%clk 0:02:47]} 6. h4 {[%clk 0:02:59]}  c5 {[%clk 0:02:34]} 7. d5 {[%clk 0:02:59]}  b5 {[%clk 0:02:34]} 8. cxb5 {[%clk 0:02:58]}  a6 {[%clk 0:02:34]} 9. bxa6 {[%clk 0:02:55]}  Qa5 {[%clk 0:02:32]} 10. Kf1 {[%clk 0:02:53]}  Bxa6 {[%clk 0:02:30]} 11. Bxa6 {[%clk 0:02:53]}  Nxa6 {[%clk 0:02:27]} 12. h5 {[%clk 0:02:53]}  Nxh5 {[%clk 0:02:20]} 13. g4 {[%clk 0:02:53]}  Bxc3 {[%clk 0:02:16]} 14. gxh5 {[%clk 0:02:28]}  Bd4 {[%clk 0:02:15]} 15. Nf3 {[%clk 0:02:24]}  Bg7 {[%clk 0:02:14]} 16. Kg2 {[%clk 0:02:19]}  Qb4 {[%clk 0:02:11]} 17. Qe2 {[%clk 0:02:17]}  Nc7 {[%clk 0:02:05]} 18. a3 {[%clk 0:02:11]}  Qb5 {[%clk 0:02:04]} 19. Qc2 {[%clk 0:01:55]}  Rfb8 {[%clk 0:01:56]} 20. hxg6 {[%clk 0:01:44]}  hxg6 {[%clk 0:01:57]} 21. e5 {[%clk 0:01:30]}  Nxd5 {[%clk 0:01:50]} 22. e6 {[%clk 0:01:29]}  f5 {[%clk 0:01:46]} 23. Qd2 {[%clk 0:01:14]}  Nf6 {[%clk 0:01:33]} 24. Qg5 {[%clk 0:01:10]}  Ra4 {[%clk 0:01:33]} 25. Bf4 {[%clk 0:01:02]}  Qc4 {[%clk 0:01:27]} 26. Qxg6 {[%clk 0:00:52]}  Qxe6 {[%clk 0:01:23]} 27. Rh4 {[%clk 0:00:38]}  Qf7 {[%clk 0:01:05]} 28. Rh8+ {[%clk 0:00:37]}  Kxh8 {[%clk 0:01:03]} 29. Qxf7 {[%clk 0:00:38]}  Rxf4 {[%clk 0:00:59]} 30. Rh1+ {[%clk 0:00:38]}  Nh7 {[%clk 0:00:59]} 31. Qh5 {[%clk 0:00:36]}  Rg4+ {[%clk 0:00:58]} 32. Kf1 {[%clk 0:00:36]} 1-0


[Site "https://www.chess.com"]

[Event "Titled Tuesday Blitz January 10 Early 2023"]
[White "Krienke, Makaio"]
[Black "Borges Feria, Yasel"]
[WhiteFideId "2038854"]
[BlackFideId "3504921"]
[WhiteElo "2115"]
[BlackElo "2439"]
[Result "0-1"]
[Round "08"]
[TimeControl "180+2"]
[Date "2023.01.10"]
[WhiteClock "0:00:18"]
[BlackClock "0:00:27"]

1. e4 {[%clk 0:03:00]}  c5 {[%clk 0:02:58]} 2. Nf3 {[%clk 0:03:00]}  d6 {[%clk 0:02:59]} 3. d4 {[%clk 0:03:01]}  Nf6 {[%clk 0:02:59]} 4. Nc3 {[%clk 0:03:00]}  cxd4 {[%clk 0:02:59]} 5. Nxd4 {[%clk 0:03:00]}  a6 {[%clk 0:02:59]} 6. Bg5 {[%clk 0:02:59]}  e6 {[%clk 0:02:59]} 7. Qd2 {[%clk 0:02:59]}  Be7 {[%clk 0:02:53]} 8. Be2 {[%clk 0:02:58]}  h6 {[%clk 0:02:53]} 9. Be3 {[%clk 0:02:55]}  b5 {[%clk 0:02:49]} 10. f3 {[%clk 0:02:51]}  Bb7 {[%clk 0:02:49]} 11. g4 {[%clk 0:02:51]}  Nbd7 {[%clk 0:02:46]} 12. O-O-O {[%clk 0:02:51]}  Nb6 {[%clk 0:02:27]} 13. h4 {[%clk 0:02:48]}  Rc8 {[%clk 0:02:20]} 14. g5 {[%clk 0:02:46]}  Nfd7 {[%clk 0:02:11]} 15. gxh6 {[%clk 0:02:41]}  g6 {[%clk 0:02:10]} 16. Kb1 {[%clk 0:02:35]}  b4 {[%clk 0:02:09]} 17. Nd5 {[%clk 0:02:29]}  exd5 {[%clk 0:02:09]} 18. exd5 {[%clk 0:02:24]}  Nxd5 {[%clk 0:02:08]} 19. Bg5 {[%clk 0:02:24]}  Qb6 {[%clk 0:01:44]} 20. Rhe1 {[%clk 0:02:13]}  Bxg5 {[%clk 0:01:25]} 21. hxg5 {[%clk 0:02:03]}  O-O {[%clk 0:01:24]} 22. f4 {[%clk 0:01:34]}  Nc3+ {[%clk 0:01:23]} 23. Ka1 {[%clk 0:01:34]}  Nxd1 {[%clk 0:01:22]} 24. Rxd1 {[%clk 0:01:35]}  Nc5 {[%clk 0:01:14]} 25. Bf3 {[%clk 0:00:46]}  Kh7 {[%clk 0:01:09]} 26. Bxb7 {[%clk 0:00:36]}  Qxb7 {[%clk 0:01:09]} 27. Ne2 {[%clk 0:00:34]}  Qe7 {[%clk 0:00:44]} 28. Qd4 {[%clk 0:00:31]}  Rg8 {[%clk 0:00:40]} 29. Ng3 {[%clk 0:00:29]}  Ne6 {[%clk 0:00:37]} 30. Qe4 {[%clk 0:00:27]}  d5 {[%clk 0:00:35]} 31. Qe5 {[%clk 0:00:26]}  Rxc2 {[%clk 0:00:28]} 32. f5 {[%clk 0:00:24]}  Qxg5 {[%clk 0:00:29]} 33. Qxd5 {[%clk 0:00:18]}  Qc1+ {[%clk 0:00:27]} 0-1


[Site "https://www.chess.com"]

[Event "Titled Tuesday Blitz January 10 Early 2023"]
[White "Sihite, Chelsie Monica Ignesias"]
[Black "Tanenbaum, Zachary"]
[WhiteFideId "7101198"]
[BlackFideId "2060850"]
[WhiteElo "2266"]
[BlackElo "2261"]
[Result "0-1"]
[Round "08"]
[TimeControl "180+2"]
[Date "2023.01.10"]
[WhiteClock "0:00:45"]
[BlackClock "0:00:05"]

1. e4 {[%clk 0:03:00]}  e5 {[%clk 0:02:59]} 2. Nf3 {[%clk 0:03:01]}  Nc6 {[%clk 0:03:00]} 3. Bc4 {[%clk 0:03:01]}  Nf6 {[%clk 0:03:00]} 4. d3 {[%clk 0:02:56]}  Be7 {[%clk 0:03:00]} 5. O-O {[%clk 0:02:56]}  O-O {[%clk 0:03:00]} 6. Bb3 {[%clk 0:02:56]}  d5 {[%clk 0:02:53]} 7. Nbd2 {[%clk 0:02:56]}  Bg4 {[%clk 0:02:48]} 8. h3 {[%clk 0:02:56]}  Bh5 {[%clk 0:02:48]} 9. c3 {[%clk 0:02:56]}  Bc5 {[%clk 0:02:37]} 10. Qe2 {[%clk 0:02:56]}  Re8 {[%clk 0:02:33]} 11. Rd1 {[%clk 0:02:56]}  dxe4 {[%clk 0:02:18]} 12. Nxe4 {[%clk 0:02:52]}  Nxe4 {[%clk 0:02:12]} 13. dxe4 {[%clk 0:02:53]}  Qf6 {[%clk 0:02:12]} 14. Ba4 {[%clk 0:02:37]}  Re6 {[%clk 0:01:45]} 15. g4 {[%clk 0:02:29]}  Qg6 {[%clk 0:01:22]} 16. Kh1 {[%clk 0:02:20]}  Bxg4 {[%clk 0:01:18]} 17. hxg4 {[%clk 0:02:20]}  Qxg4 {[%clk 0:01:19]} 18. Ng1 {[%clk 0:02:19]}  Qh4+ {[%clk 0:01:14]} 19. Kg2 {[%clk 0:02:10]}  Rg6+ {[%clk 0:01:13]} 20. Kf1 {[%clk 0:02:03]}  Qh1 {[%clk 0:01:12]} 21. Qf3 {[%clk 0:02:03]}  Rxg1+ {[%clk 0:00:58]} 22. Ke2 {[%clk 0:02:03]}  Rxd1 {[%clk 0:00:41]} 23. Bxd1 {[%clk 0:02:03]}  Qxf3+ {[%clk 0:00:36]} 24. Kxf3 {[%clk 0:02:04]}  Rd8 {[%clk 0:00:36]} 25. Bb3 {[%clk 0:01:59]}  Rd6 {[%clk 0:00:34]} 26. Ke2 {[%clk 0:01:56]}  Rf6 {[%clk 0:00:33]} 27. Be3 {[%clk 0:01:24]}  Bxe3 {[%clk 0:00:32]} 28. Kxe3 {[%clk 0:01:25]}  Rd6 {[%clk 0:00:32]} 29. Rg1 {[%clk 0:01:24]}  g6 {[%clk 0:00:32]} 30. Rg2 {[%clk 0:01:22]}  Kg7 {[%clk 0:00:32]} 31. f4 {[%clk 0:01:22]}  exf4+ {[%clk 0:00:30]} 32. Kxf4 {[%clk 0:01:23]}  Rf6+ {[%clk 0:00:31]} 33. Ke3 {[%clk 0:01:23]}  Ne5 {[%clk 0:00:31]} 34. Kd4 {[%clk 0:01:18]}  Nc6+ {[%clk 0:00:26]} 35. Ke3 {[%clk 0:01:18]}  Rd6 {[%clk 0:00:26]} 36. Rf2 {[%clk 0:01:16]}  Ne5 {[%clk 0:00:25]} 37. Rf1 {[%clk 0:01:16]}  f6 {[%clk 0:00:25]} 38. Rg1 {[%clk 0:01:06]}  h5 {[%clk 0:00:25]} 39. Bd1 {[%clk 0:01:05]}  Nc4+ {[%clk 0:00:23]} 40. Kf4 {[%clk 0:01:05]}  Rd2 {[%clk 0:00:17]} 41. Bxh5 {[%clk 0:01:02]}  Rf2+ {[%clk 0:00:15]} 42. Kg3 {[%clk 0:01:02]}  Rxb2 {[%clk 0:00:15]} 43. Kf3 {[%clk 0:01:01]}  Ne5+ {[%clk 0:00:14]} 44. Ke3 {[%clk 0:01:00]}  Rxa2 {[%clk 0:00:15]} 45. Be2 {[%clk 0:01:00]}  Rc2 {[%clk 0:00:15]} 46. Rb1 {[%clk 0:00:56]}  b6 {[%clk 0:00:15]} 47. Ra1 {[%clk 0:00:55]}  a5 {[%clk 0:00:15]} 48. Ra3 {[%clk 0:00:56]}  g5 {[%clk 0:00:14]} 49. Rb3 {[%clk 0:00:54]}  g4 {[%clk 0:00:14]} 50. Bd1 {[%clk 0:00:51]}  Ra2 {[%clk 0:00:13]} 51. Kf4 {[%clk 0:00:51]}  Rf2+ {[%clk 0:00:12]} 52. Kg3 {[%clk 0:00:51]}  Rd2 {[%clk 0:00:11]} 53. Bxg4 {[%clk 0:00:50]}  Rd3+ {[%clk 0:00:11]} 54. Kf4 {[%clk 0:00:51]}  Nxg4 {[%clk 0:00:10]} 55. Kxg4 {[%clk 0:00:51]}  a4 {[%clk 0:00:10]} 56. Rb4 {[%clk 0:00:50]}  a3 {[%clk 0:00:09]} 57. Rb3 {[%clk 0:00:49]}  a2 {[%clk 0:00:09]} 58. Ra3 {[%clk 0:00:50]}  Rd2 {[%clk 0:00:09]} 59. Kf5 {[%clk 0:00:48]}  Rf2+ {[%clk 0:00:08]} 60. Ke6 {[%clk 0:00:48]}  Kg6 {[%clk 0:00:08]} 61. Ra8 {[%clk 0:00:47]}  b5 {[%clk 0:00:08]} 62. Rg8+ {[%clk 0:00:46]}  Kh7 {[%clk 0:00:08]} 63. Rg1 {[%clk 0:00:47]}  c5 {[%clk 0:00:08]} 64. Kf7 {[%clk 0:00:47]}  Rh2 {[%clk 0:00:07]} 65. Kxf6 {[%clk 0:00:46]}  b4 {[%clk 0:00:06]} 66. e5 {[%clk 0:00:45]}  b3 {[%clk 0:00:06]} 67. e6 {[%clk 0:00:45]}  b2 {[%clk 0:00:06]} 68. e7 {[%clk 0:00:46]}  Rf2+ {[%clk 0:00:06]} 69. Ke6 {[%clk 0:00:44]}  Re2+ {[%clk 0:00:07]} 70. Kf7 {[%clk 0:00:44]}  Rxe7+ {[%clk 0:00:07]} 71. Kf6 {[%clk 0:00:44]}  b1=Q {[%clk 0:00:06]} 72. Rg5 {[%clk 0:00:44]}  Qf1+ {[%clk 0:00:05]} 73. Rf5 {[%clk 0:00:44]}  Qxf5+ {[%clk 0:00:05]} 74. Kxe7 {[%clk 0:00:45]}  a1=Q {[%clk 0:00:05]} 0-1


[Site "https://www.chess.com"]

[Event "Titled Tuesday Blitz January 10 Early 2023"]
[White "Gholami Orimi, Mahdi"]
[Black "Yelisieiev, Yevhenii"]
[WhiteFideId "12558486"]
[BlackFideId "14139642"]
[WhiteElo "2420"]
[BlackElo "2418"]
[Result "1-0"]
[Round "08"]
[TimeControl "180+2"]
[Date "2023.01.10"]
[WhiteClock "0:01:09"]
[BlackClock "0:00:16"]

1. d4 {[%clk 0:03:00]}  d6 {[%clk 0:03:00]} 2. Nf3 {[%clk 0:02:59]}  Nf6 {[%clk 0:03:00]} 3. g3 {[%clk 0:02:57]}  Nbd7 {[%clk 0:03:00]} 4. Bg2 {[%clk 0:02:57]}  e5 {[%clk 0:03:01]} 5. O-O {[%clk 0:02:56]}  Be7 {[%clk 0:03:01]} 6. c4 {[%clk 0:02:57]}  O-O {[%clk 0:03:02]} 7. Nc3 {[%clk 0:02:57]}  c6 {[%clk 0:03:02]} 8. e4 {[%clk 0:02:58]}  a6 {[%clk 0:03:02]} 9. Qe2 {[%clk 0:02:52]}  b5 {[%clk 0:03:01]} 10. Rd1 {[%clk 0:02:53]}  Qc7 {[%clk 0:03:01]} 11. Be3 {[%clk 0:02:40]}  Re8 {[%clk 0:03:00]} 12. h3 {[%clk 0:02:39]}  Bb7 {[%clk 0:03:00]} 13. Rac1 {[%clk 0:02:37]}  b4 {[%clk 0:02:52]} 14. Na4 {[%clk 0:02:34]}  exd4 {[%clk 0:02:52]} 15. Nxd4 {[%clk 0:02:34]}  c5 {[%clk 0:02:51]} 16. Nf5 {[%clk 0:02:34]}  Bf8 {[%clk 0:02:04]} 17. f3 {[%clk 0:02:31]}  Rad8 {[%clk 0:02:00]} 18. b3 {[%clk 0:02:29]}  Ne5 {[%clk 0:01:54]} 19. g4 {[%clk 0:02:17]}  g6 {[%clk 0:01:48]} 20. Ng3 {[%clk 0:02:13]}  Bg7 {[%clk 0:01:44]} 21. Rc2 {[%clk 0:02:10]}  Nfd7 {[%clk 0:01:38]} 22. Rcd2 {[%clk 0:02:08]}  Nf8 {[%clk 0:01:36]} 23. Qf2 {[%clk 0:02:05]}  Ne6 {[%clk 0:01:33]} 24. h4 {[%clk 0:01:40]}  Nc6 {[%clk 0:01:31]} 25. Ne2 {[%clk 0:01:40]}  Ncd4 {[%clk 0:01:29]} 26. Nxd4 {[%clk 0:01:40]}  Nxd4 {[%clk 0:01:28]} 27. h5 {[%clk 0:01:36]}  Qe7 {[%clk 0:01:04]} 28. h6 {[%clk 0:01:32]}  Be5 {[%clk 0:01:01]} 29. Nb2 {[%clk 0:01:27]}  Bh8 {[%clk 0:00:46]} 30. Nd3 {[%clk 0:01:24]}  a5 {[%clk 0:00:36]} 31. Ne1 {[%clk 0:01:18]}  a4 {[%clk 0:00:35]} 32. Nc2 {[%clk 0:01:14]}  Nc6 {[%clk 0:00:24]} 33. Bf4 {[%clk 0:01:08]}  Nd4 {[%clk 0:00:20]} 34. Nxd4 {[%clk 0:01:08]}  Bxd4 {[%clk 0:00:20]} 35. Rxd4 {[%clk 0:01:09]}  cxd4 {[%clk 0:00:19]} 36. Qxd4 {[%clk 0:01:10]}  axb3 {[%clk 0:00:16]} 37. Qg7# {[%clk 0:01:09]} 1-0


[Site "https://www.chess.com"]

[Event "Titled Tuesday Blitz January 10 Early 2023"]
[White "Pajeken, Jakob Leon"]
[Black "Kobalia, Mikhail"]
[WhiteFideId "12942839"]
[BlackFideId "4119150"]
[WhiteElo "2417"]
[BlackElo "2578"]
[Result "0-1"]
[Round "08"]
[TimeControl "180+2"]
[Date "2023.01.10"]
[WhiteClock "0:00:52"]
[BlackClock "0:00:26"]

1. d4 {[%clk 0:03:00]}  d5 {[%clk 0:02:57]} 2. Nf3 {[%clk 0:03:01]}  Nf6 {[%clk 0:02:56]} 3. c4 {[%clk 0:03:01]}  c6 {[%clk 0:02:56]} 4. b3 {[%clk 0:02:56]}  Bg4 {[%clk 0:02:54]} 5. Ne5 {[%clk 0:02:54]}  Bf5 {[%clk 0:02:54]} 6. Bb2 {[%clk 0:02:54]}  e6 {[%clk 0:02:54]} 7. Nd2 {[%clk 0:02:53]}  Nbd7 {[%clk 0:02:55]} 8. f4 {[%clk 0:02:52]}  Bb4 {[%clk 0:02:53]} 9. Nd3 {[%clk 0:02:47]}  Bxd2+ {[%clk 0:02:51]} 10. Qxd2 {[%clk 0:02:46]}  Ne4 {[%clk 0:02:51]} 11. Qc2 {[%clk 0:02:42]}  Qh4+ {[%clk 0:02:47]} 12. g3 {[%clk 0:02:25]}  Nxg3 {[%clk 0:02:47]} 13. hxg3 {[%clk 0:02:25]}  Qxh1 {[%clk 0:02:46]} 14. O-O-O {[%clk 0:02:23]}  Qg1 {[%clk 0:02:40]} 15. cxd5 {[%clk 0:02:17]}  exd5 {[%clk 0:02:18]} 16. Ba3 {[%clk 0:02:09]}  Qxg3 {[%clk 0:02:13]} 17. Kb1 {[%clk 0:02:06]}  O-O-O {[%clk 0:02:06]} 18. Bd6 {[%clk 0:01:59]}  Qg6 {[%clk 0:01:52]} 19. Bb4 {[%clk 0:01:53]}  Rde8 {[%clk 0:01:50]} 20. Kb2 {[%clk 0:01:51]}  f6 {[%clk 0:01:14]} 21. Qc3 {[%clk 0:01:43]}  Re3 {[%clk 0:01:10]} 22. Rc1 {[%clk 0:01:39]}  Bxd3 {[%clk 0:01:07]} 23. exd3 {[%clk 0:01:38]}  Rhe8 {[%clk 0:01:04]} 24. Bd6 {[%clk 0:01:29]}  R8e6 {[%clk 0:00:53]} 25. Qb4 {[%clk 0:01:19]}  Qg4 {[%clk 0:00:40]} 26. Ka3 {[%clk 0:01:08]}  Qf3 {[%clk 0:00:35]} 27. f5 {[%clk 0:00:51]}  Qxf5 {[%clk 0:00:34]} 28. Bh2 {[%clk 0:00:52]}  Qf2 {[%clk 0:00:26]} 0-1


[Site "https://www.chess.com"]

[Event "Titled Tuesday Blitz January 10 Early 2023"]
[White "Bilych, Olexiy"]
[Black "Derjabin, Ilja"]
[WhiteFideId "14156504"]
[BlackFideId "14104768"]
[WhiteElo "2441"]
[BlackElo "2333"]
[Result "1-0"]
[Round "08"]
[TimeControl "180+2"]
[Date "2023.01.10"]
[WhiteClock "0:00:44"]
[BlackClock "0:00:02"]

1. Nf3 {[%clk 0:03:00]}  c5 {[%clk 0:02:58]} 2. e4 {[%clk 0:02:58]}  d6 {[%clk 0:02:58]} 3. d4 {[%clk 0:02:58]}  cxd4 {[%clk 0:02:58]} 4. Nxd4 {[%clk 0:02:59]}  Nf6 {[%clk 0:02:58]} 5. Nc3 {[%clk 0:02:59]}  a6 {[%clk 0:02:59]} 6. Bg5 {[%clk 0:03:00]}  e6 {[%clk 0:02:58]} 7. f4 {[%clk 0:03:00]}  Be7 {[%clk 0:02:58]} 8. Qf3 {[%clk 0:03:00]}  Nbd7 {[%clk 0:02:54]} 9. O-O-O {[%clk 0:02:58]}  h6 {[%clk 0:02:54]} 10. Bh4 {[%clk 0:02:54]}  Qc7 {[%clk 0:02:54]} 11. Be2 {[%clk 0:02:41]}  b5 {[%clk 0:02:49]} 12. Qg3 {[%clk 0:02:42]}  g5 {[%clk 0:02:39]} 13. fxg5 {[%clk 0:02:40]}  hxg5 {[%clk 0:02:34]} 14. Bxg5 {[%clk 0:02:05]}  b4 {[%clk 0:02:33]} 15. Ndb5 {[%clk 0:02:04]}  axb5 {[%clk 0:02:30]} 16. Nxb5 {[%clk 0:02:05]}  Qc6 {[%clk 0:02:09]} 17. Nxd6+ {[%clk 0:02:01]}  Bxd6 {[%clk 0:01:59]} 18. Rxd6 {[%clk 0:02:01]}  Nxe4 {[%clk 0:01:43]} 19. Qh4 {[%clk 0:01:40]}  Rxh4 {[%clk 0:01:24]} 20. Rxc6 {[%clk 0:01:40]}  Rh8 {[%clk 0:01:10]} 21. Bf4 {[%clk 0:01:31]}  e5 {[%clk 0:00:59]} 22. Bf3 {[%clk 0:01:29]}  exf4 {[%clk 0:00:54]} 23. Bxe4 {[%clk 0:01:27]}  Rb8 {[%clk 0:00:53]} 24. h4 {[%clk 0:01:16]}  Bb7 {[%clk 0:00:48]} 25. Rc4 {[%clk 0:01:16]}  Bxe4 {[%clk 0:00:41]} 26. Rxe4+ {[%clk 0:01:17]}  Kf8 {[%clk 0:00:41]} 27. Rxf4 {[%clk 0:01:17]}  Ne5 {[%clk 0:00:39]} 28. g4 {[%clk 0:01:15]}  Rc8 {[%clk 0:00:33]} 29. Kb1 {[%clk 0:01:14]}  Rc4 {[%clk 0:00:32]} 30. Rxc4 {[%clk 0:01:07]}  Nxc4 {[%clk 0:00:32]} 31. b3 {[%clk 0:01:03]}  Nd2+ {[%clk 0:00:29]} 32. Kb2 {[%clk 0:01:00]}  Nf3 {[%clk 0:00:24]} 33. Rf1 {[%clk 0:01:00]}  Nxh4 {[%clk 0:00:23]} 34. Rf4 {[%clk 0:01:00]}  Ng6 {[%clk 0:00:21]} 35. Rxb4 {[%clk 0:01:00]}  Rh4 {[%clk 0:00:22]} 36. a4 {[%clk 0:01:00]}  Ne5 {[%clk 0:00:16]} 37. a5 {[%clk 0:00:55]}  Rh6 {[%clk 0:00:15]} 38. Rb8+ {[%clk 0:00:49]}  Ke7 {[%clk 0:00:15]} 39. b4 {[%clk 0:00:49]}  Nxg4 {[%clk 0:00:11]} 40. b5 {[%clk 0:00:49]}  Ne5 {[%clk 0:00:10]} 41. a6 {[%clk 0:00:50]}  Nc4+ {[%clk 0:00:03]} 42. Kc3 {[%clk 0:00:48]}  Nd6 {[%clk 0:00:03]} 43. Kb4 {[%clk 0:00:46]}  Rh4+ {[%clk 0:00:02]} 44. Kb3 {[%clk 0:00:44]} 1-0


[Site "https://www.chess.com"]

[Event "Titled Tuesday Blitz January 10 Early 2023"]
[White "Halkias, Stelios"]
[Black "Bilan, Danila"]
[WhiteFideId "4201809"]
[BlackFideId "24161918"]
[WhiteElo "2511"]
[BlackElo "2303"]
[Result "1-0"]
[Round "08"]
[TimeControl "180+2"]
[Date "2023.01.10"]
[WhiteClock "0:00:17"]
[BlackClock "0:00:01"]

1. Nf3 {[%clk 0:02:53]}  d5 {[%clk 0:02:59]} 2. d4 {[%clk 0:02:53]}  Nf6 {[%clk 0:02:59]} 3. c4 {[%clk 0:02:53]}  c6 {[%clk 0:02:59]} 4. Nc3 {[%clk 0:02:53]}  e6 {[%clk 0:03:00]} 5. g3 {[%clk 0:02:53]}  Nbd7 {[%clk 0:02:50]} 6. Bg2 {[%clk 0:02:53]}  Be7 {[%clk 0:02:46]} 7. Qd3 {[%clk 0:02:52]}  O-O {[%clk 0:02:39]} 8. O-O {[%clk 0:02:52]}  b6 {[%clk 0:02:38]} 9. b3 {[%clk 0:02:52]}  Ba6 {[%clk 0:02:37]} 10. e4 {[%clk 0:02:46]}  c5 {[%clk 0:02:33]} 11. exd5 {[%clk 0:02:38]}  exd5 {[%clk 0:02:25]} 12. Nb5 {[%clk 0:02:37]}  Bxb5 {[%clk 0:02:02]} 13. cxb5 {[%clk 0:02:36]}  Rc8 {[%clk 0:02:01]} 14. Bf4 {[%clk 0:02:21]}  c4 {[%clk 0:01:50]} 15. Qf5 {[%clk 0:02:20]}  g6 {[%clk 0:01:34]} 16. Qc2 {[%clk 0:02:15]}  Ne4 {[%clk 0:01:20]} 17. bxc4 {[%clk 0:02:04]}  Rxc4 {[%clk 0:01:16]} 18. Qd3 {[%clk 0:02:01]}  Rc3 {[%clk 0:01:03]} 19. Qd1 {[%clk 0:02:00]}  Bf6 {[%clk 0:00:53]} 20. Ne5 {[%clk 0:01:52]}  Nxe5 {[%clk 0:00:32]} 21. dxe5 {[%clk 0:01:50]}  Bg7 {[%clk 0:00:32]} 22. Re1 {[%clk 0:01:46]}  Qe8 {[%clk 0:00:23]} 23. Qxd5 {[%clk 0:01:43]}  Nc5 {[%clk 0:00:21]} 24. a4 {[%clk 0:01:39]}  Nd3 {[%clk 0:00:17]} 25. Re2 {[%clk 0:01:32]}  Nxf4 {[%clk 0:00:16]} 26. gxf4 {[%clk 0:01:32]}  Qc8 {[%clk 0:00:17]} 27. Rae1 {[%clk 0:01:23]}  Rd8 {[%clk 0:00:16]} 28. Qe4 {[%clk 0:01:20]}  Rc1 {[%clk 0:00:17]} 29. h3 {[%clk 0:01:16]}  Qc3 {[%clk 0:00:18]} 30. Rxc1 {[%clk 0:01:09]}  Qxc1+ {[%clk 0:00:18]} 31. Re1 {[%clk 0:01:09]}  Qc5 {[%clk 0:00:11]} 32. f5 {[%clk 0:00:45]}  gxf5 {[%clk 0:00:05]} 33. Qxf5 {[%clk 0:00:43]}  Qc3 {[%clk 0:00:05]} 34. Re3 {[%clk 0:00:40]}  Rd1+ {[%clk 0:00:05]} 35. Kh2 {[%clk 0:00:40]}  Qc7 {[%clk 0:00:05]} 36. Rg3 {[%clk 0:00:37]}  Kf8 {[%clk 0:00:05]} 37. f4 {[%clk 0:00:30]}  Qc5 {[%clk 0:00:03]} 38. h4 {[%clk 0:00:23]}  Qg1+ {[%clk 0:00:03]} 39. Kh3 {[%clk 0:00:24]}  Bh6 {[%clk 0:00:01]} 40. Qc8+ {[%clk 0:00:19]}  Ke7 {[%clk 0:00:01]} 41. f5 {[%clk 0:00:17]}  Rd7 {[%clk 0:00:02]} 42. f6+ {[%clk 0:00:17]}  Ke6 {[%clk 0:00:02]} 43. Qc6+ {[%clk 0:00:17]}  Kxe5 {[%clk 0:00:01]} 44. Qxd7 {[%clk 0:00:17]} 1-0


[Site "https://www.chess.com"]